[Event "Silves Open 2025"]
[Site "Fissul"]
[Date "2025.03.03"]
[Round "3.6"]
[White "Boesel, Alexander"]
[Black "Sanz Wawer, Daniel"]
[Result "0-1"]
[Annotator "TA"]
[ECO "B22"]
[WhiteElo "2046"]
[BlackElo "2283"]
[PlyCount "103"]
[EventDate "2025.03.03"]
[EventType "swiss"]
[EventCountry "POR"]
[SourceTitle "playchess.com"]
[Source "ChessBase"]
[SourceQuality "1"]
[TimeControl "5400+30"]

{[%evp 23,103,3,30,9,0,0,0,0,-5,-11,0,-26,-16,-32,-35,-39,-20,-45,-1,-9,0,-51,-69,-58,-7,-12,-4,-37,-39,-64,-66,-75,-62,-73,-59,-60,-61,-59,-58,-91,-91,-85,-70,-85,-75,-70,-79,-79,-74,-87,-66,-97,-50,-50,-28,-56,-56,-79,-66,-69,-73,-82,-85,-1260,-1242,-2057,-2069,-1859,-1557,-29953,-12843,-29977,0,-29978,-29978,-29977,-29977,-29986,-29987,-29987,-29988,-29989]} 1. e4 {[%emt 0:00:02]} c5 {[%emt 0:00:35]} 2. Nf3 {[%emt 0:00:06]} e6 {[%emt 0:00:04]} 3. c3 {[%emt 0:00:12]} Nf6 {[%emt 0:01:46]} 4. e5 {[%emt 0:00:25]} Nd5 {[%emt 0:00:11]} 5. g3 {[%emt 0:00:20]} d6 {[%emt 0:01:14]} 6. exd6 {[%emt 0:00:23]} Bxd6 {[%emt 0:00:40]} 7. Bg2 {[%emt 0:00:15]} O-O {[%emt 0:00:17]} 8. O-O {[%emt 0:00:17]} Nc6 {[%emt 0:05:16]} 9. d4 {[%emt 0:01:48]} cxd4 {[%emt 0:01:20]} 10. Nxd4 {[%emt 0:00:39]} Nxd4 {[%emt 0:00:55]} 11. Qxd4 {[%emt 0:00:40]} Qc7 {[%emt 0:00:57]} 12. c4 {[%emt 0:12:12] Nowadays more popular than 12.Nd2.} Nb6 {[%emt 0:02:43][%cal Od6e5]} 13. Nd2 {[%emt 0:02:28] B22: Sicilian: 2 c3.} Rd8 {[%emt 0:02:42][%cal Od6g3]} 14. Qe4 {[%emt 0:06:28]} Bb4 {[%emt 0:08:08]} 15. Qc2 $146 {[%emt 0:07:14] The position is equal.} (15. Qe2 Bxd2 16. Bxd2 Qxc4 17. Qe1 Nd5 18. Qe5 f6 19. Qh5 e5 20. Rac1 Qg4 21. Bxd5+ {1-0 Tsaruk,M (2480)-Abdisalimov,A (2504) Kazan BRICS Games Rapid Team 2024 (6.9)}) 15... Bxd2 {[%emt 0:00:55]} 16. Bxd2 {[%emt 0:00:08]} Qxc4 {[%emt 0:01:12]} 17. Bc3 {[%emt 0:01:08]} Qc7 {[%emt 0:20:05]} 18. Qe4 {[%emt 0:02:42]} Nd5 {[%emt 0:02:58]} 19. Rac1 {[%emt 0:05:35][%cal Oc3g7] Threatens to win with Bxg7!.} Qe7 {[%emt 0:03:07]} 20. Qd4 {[%emt 0:06:28][%csl Gc3][%cal Rd4g7]} Nxc3 {[%emt 0:06:37]} 21. Qxc3 {[%emt 0:00:07]} Rb8 {[%emt 0:02:17]} 22. Qc7 {[%emt 0:10:26]} (22. Qe5 $11 Bd7 23. Rc7) 22... Qxc7 $15 {[%emt 0:00:43]} 23. Rxc7 {[%emt 0:00:05]} e5 {[%emt 0:06:40]} (23... a5 $15) 24. Rfc1 $11 {[%emt 0:06:22]} Kf8 {[%emt 0:08:58]} 25. Kf1 {[%emt 0:06:53]} Be6 {[%emt 0:01:31]} 26. Ke1 {[%emt 0:08:30] Inhibits Rd2.} Bxa2 {[%emt 0:01:28]} 27. Bxb7 {[%emt 0:01:33]} Be6 {[%emt 0:02:52]} 28. Ra1 {[%emt 0:06:26]} Rd6 {[%emt 0:00:28]} 29. Rxa7 {[%emt 0:03:32]} Rb6 {[%emt 0:00:53]} 30. Be4 {[%emt 0:02:58]} Rxb2 {[%emt 0:02:24]} 31. Ra8 {[%emt 0:02:07]} Rxa8 {[%emt 0:02:59]} 32. Bxa8 $17 {[%emt 0:00:05][%mdl 4096] Endgame KRB-KRB. Black is a pawn up.} Rb5 {[%emt 0:00:47]} 33. Ra7 {[%emt 0:00:56]} g6 {[%emt 0:03:01]} 34. h4 {[%emt 0:00:37]} Kg7 {[%emt 0:00:50]} 35. Ra3 {[%emt 0:01:02]} h6 {[%emt 0:03:01]} 36. Ke2 {[%emt 0:00:33]} f5 {[%emt 0:01:23]} 37. Kf3 {[%emt 0:01:01]} e4+ {[%emt 0:00:45]} (37... g5 $17 38. Ra7+ Kf6 39. hxg5+ hxg5) 38. Kf4 $15 {[%emt 0:02:36]} Kf6 {[%emt 0:03:18]} 39. Ke3 {[%emt 0:01:02]} Ke5 {[%emt 0:01:39]} 40. Bc6 {[%emt 0:01:35]} Rc5 {[%emt 0:00:37]} 41. Be8 {[%emt 0:00:15]} g5 {[%emt 0:00:34]} 42. hxg5 {[%emt 0:00:05]} hxg5 {[%emt 0:00:03] Threatens to win with ...Rc2.} 43. Bh5 $2 {[%emt 0:01:44][%mdl 8192] [#]} (43. f4+ $17 gxf4+ 44. gxf4+ Kf6 45. Bh5) 43... Rc2 $1 $19 {[%emt 0:01:48]} 44. Ra5+ {[%emt 0:00:46] [#]} Bd5 $1 {[%emt 0:00:54] ( -> ...f4+)} 45. f4+ {[%emt 0:00:28]} exf3 {[%emt 0:00:47]} 46. Bf7 {[%emt 0:00:55]} f4+ {[%emt 0:00:26]} 47. gxf4+ {[%emt 0:00:20]} gxf4+ {[%emt 0:00:03]} 48. Kd3 {[%emt 0:00:08]} f2 {[%emt 0:00:34] Black mates.} 49. Kxc2 {[%emt 0:00:48]} f1=Q {[%emt 0:00:13]} ({Not} 49... f1=R 50. Rxd5+ Kf6 51. Rd7 $11) 50. Bxd5 {[%emt 0:00:16]} Qe2+ {[%emt 0:00:19]} 51. Kb3 {[%emt 0:00:14]} Qd3+ {[%emt 0:00:10]} 52. Ka4 {[%emt 0:00:28] Weighted Error Value: White=0.75/Black=0.08 (flawless)   Loses game:     	White=1     	---        Mistake:       	White=1     	Black=2      Inaccurate:     	White=6     	Black=1      OK:         	White=7     	Black=9      Best:        	---       	Black=3      Strong:       	---       	Black=1} 0-1

[Event "Silves Open 2025"]
[Site "Fissul"]
[Date "2025.03.03"]
[Round "3.7"]
[White "Degardin, Sylvain"]
[Black "Dias, Ivo Rodrigues"]
[Result "1-0"]
[Annotator "TA"]
[ECO "B90"]
[WhiteElo "2309"]
[BlackElo "2097"]
[PlyCount "71"]
[EventDate "2025.03.03"]
[EventType "swiss"]
[EventCountry "POR"]
[SourceTitle "playchess.com"]
[Source "ChessBase"]
[SourceQuality "1"]
[TimeControl "5400+30"]

{[%evp 20,70,42,22,18,15,25,16,22,22,11,9,7,2,17,-3,-6,-5,0,0,0,0,46,28,86,79,94,58,44,0,0,-11,152,153,303,320,311,306,704,485,472,268,506,486,5414,5414,29988,29989,29989,29990,29998,29999,29999]} 1. e4 {[%emt 0:00:04]} c5 {[%emt 0:01:12]} 2. Nf3 {[%emt 0:00:11]} d6 {[%emt 0:00:41]} 3. d4 {[%emt 0:00:19]} cxd4 {[%emt 0:00:21]} 4. Nxd4 {[%emt 0:00:09]} Nf6 {[%emt 0:00:18]} 5. Nc3 {[%emt 0:00:11]} a6 {[%emt 0:00:07]} 6. Be3 {[%emt 0:00:18]} Ng4 {[%emt 0:00:22]} 7. Bg5 {[%emt 0:00:30][%cal Be3g5,Bg5h4,Bh4g3][%mdl 32]} h6 {[%emt 0:02:29]} 8. Bh4 {[%emt 0:00:36]} g5 {[%emt 0:00:24]} 9. Bg3 {[%emt 0:00:10]} Bg7 {[%emt 0:00:58]} 10. h3 {[%emt 0:00:22]} Ne5 {[%emt 0:00:34]} 11. Nf5 {[%emt 0:00:22] 11.f3 is vanishing.} Bxf5 {[%emt 0:01:24] B90: Sicilian Najdorf: Unusual White 6th moves, 6 Be3 Ng4 and 6 Be3 e5.} 12. exf5 {[%emt 0:00:09]} Nbc6 {[%emt 0:09:05]} 13. Nd5 {[%emt 0:01:19]} e6 {[%emt 0:09:52] The position is equal.} 14. fxe6 {[%emt 0:00:38]} fxe6 {[%emt 0:00:02]} 15. Ne3 {[%emt 0:00:26]} Qa5+ {[%emt 0:08:43]} 16. c3 {[%emt 0:02:38] next Qh5+ is good for White.} Nf3+ {[%emt 0:05:00]} 17. gxf3 {[%emt 0:00:49] [#]} (17. Qxf3 {looks sharper.} Bxc3+ 18. Kd1 Qa4+ 19. Nc2) 17... Bxc3+ $1 {[%emt 0:02:46]} 18. bxc3 {[%emt 0:00:20]} Qxc3+ {[%emt 0:00:11]} 19. Qd2 {[%emt 0:00:14]} Qxa1+ {[%emt 0:00:45]} 20. Nd1 {[%emt 0:00:18]} Nd4 $146 {[%emt 0:09:34]} (20... O-O-O $11) (20... Qd4 21. Bd3 Ne5 22. Bxe5 Qxe5+ 23. Kf1 O-O 24. Be2 Rac8 {½-½ Dominguez Perez,L (2745)-Firouzja,A (2778) Sinquefield Cup 9th 2022 (7)}) 21. Bg2 $14 {[%emt 0:11:36][%cal Oe1g1]} (21. Bxd6 $2 Nxf3+ 22. Ke2 Nxd2 $19) 21... Rc8 {[%emt 0:10:25]} (21... Nf5 $11 {remains equal.}) 22. O-O $1 $16 {[%emt 0:02:56][%cal Od1b2]} (22. Bxd6 Rc6 23. Bg3 Nc2+ (23... Rc2 24. Qd3 $16) 24. Kf1 Ke7 $17) 22... e5 {[%emt 0:04:21]} 23. Qd3 {[%emt 0:06:44]} ({Much less strong is} 23. Ne3 Qc3 24. Qd1 O-O $18) 23... Qxa2 {[%emt 0:01:46]} 24. Re1 {[%emt 0:13:15]} (24. Qg6+ $14 Ke7 25. Qe4 (25. Ne3 Qf7 $16)) 24... Kd7 $11 {[%emt 0:07:15] White must now prevent ...Rc1.} 25. Ne3 {[%emt 0:11:57]} a5 $2 {[%emt 0:04:42] [#]} (25... Rhf8 $11) 26. Qe4 $1 $16 {[%emt 0:08:45][%cal Og3e5] Really sharp!} Qd2 {[%emt 0:09:08]} (26... Rhf8 $16) 27. Rd1 $18 {[%emt 0:09:52]} (27. Qxb7+ Rc7 28. Qb1 Qc1 $11) 27... Rc1 {[%emt 0:05:08]} 28. Qxb7+ {[%emt 0:01:35]} Ke6 $2 {[%emt 0:00:26]} (28... Kd8 29. Rxc1 Qxc1+ 30. Kh2 Qc8) 29. Rxc1 {[%emt 0:04:10]} Qxc1+ {[%emt 0:00:10]} 30. Bf1 {[%emt 0:00:16]} (30. Kh2 $142 {[%cal Of3f4] f4! would now be deadly.} Rf8 31. Qd5+ Ke7 32. Nc4 (32. Qxa5 Qc5 $18)) 30... Rf8 {[%emt 0:04:14]} (30... Rc8 31. Kg2 Qc7 32. Qd5+ (32. Bc4+ Kd7 $18) 32... Ke7) 31. Kg2 {[%emt 0:02:55]} Kf6 {[%emt 0:02:51]} (31... Rf7 $142 32. Qd5+ Ke7 33. Bxe5 (33. Qxa5 Nxf3 34. Nc4 Ne1+ 35. Kh1 Rf6 $18) 33... dxe5) 32. Qd7 {[%emt 0:02:58] Ng4+ would kill now.} Qc6 {[%emt 0:00:34]} 33. Ng4+ {[%emt 0:00:35] White mates.} Kg6 {[%emt 0:00:24]} 34. Bd3+ {[%emt 0:00:18]} Kh5 {[%emt 0:00:28] [#]} 35. Nf6+ $1 {[%emt 0:00:12][%mdl 512]} Rxf6 {[%emt 0:00:21]} 36. Qg4# {[%emt 0:00:46] Weighted Error Value: White=0.35/Black=1.21  Mistake:       	White=1     	Black=7      Inaccurate:     	White=2     	Black=1      OK:         	White=7     	Black=7      Best:        	White=5     	Black=1      Strong:       	White=2     	---        Brilliant:      	---       	Black=1} 1-0

[Event "Silves Open 2025"]
[Site "Fissul"]
[Date "2025.03.03"]
[Round "3.8"]
[White "Fernandes, Antonio"]
[Black "Esteves, Goncalo Maria Franco"]
[Result "1-0"]
[Annotator "TA"]
[ECO "A45"]
[WhiteElo "2326"]
[BlackElo "1962"]
[PlyCount "75"]
[EventDate "2025.03.03"]
[EventType "swiss"]
[EventCountry "POR"]
[SourceTitle "playchess.com"]
[Source "ChessBase"]
[SourceQuality "1"]
[TimeControl "5400+30"]

{[%evp 10,75,14,-2,17,-6,-2,-10,-3,0,10,0,8,-6,47,30,44,36,24,22,59,53,90,91,135,133,187,162,150,147,166,150,176,87,143,114,193,99,155,150,159,130,189,163,186,185,200,108,124,121,111,143,154,134,110,123,114,0,1019,900,29989,29990,29990,29991,29991,29992,29992,29993]} 1. d4 {[%emt 0:13:02]} Nf6 {[%emt 0:00:09]} 2. Bg5 {[%emt 0:00:08]} g6 {[%emt 0:00:44]} 3. Bxf6 {[%emt 0:02:09]} exf6 {[%emt 0:00:08]} 4. e3 {[%emt 0:00:05]} Bg7 {[%emt 0:00:15]} 5. Ne2 {[%emt 0:00:52]} O-O {[%emt 0:00:19]} 6. Nf4 {[%emt 0:00:24]} d6 {[%emt 0:00:56] A45: Trompowsky Attack.} 7. Bc4 {[%emt 0:00:54]} c6 {[%emt 0:00:26]} 8. Bb3 $146 {[%emt 0:00:17]} (8. Nd2 Nd7 9. h4 Bh6 10. h5 g5 11. Ne2 f5 12. c3 Nf6 13. Qc2 {½-½ Meduna,E (2431)-Meszaros,M (2373) CZE-chT 0708 2007 (11.4)}) 8... Qe7 {[%emt 0:00:52] The position is equal.} 9. h4 {[%emt 0:00:44]} d5 {[%emt 0:00:59]} 10. Nd2 {[%emt 0:15:39]} Bh6 {[%emt 0:01:27]} 11. Qf3 {[%emt 0:00:38]} Be6 {[%emt 0:01:09]} (11... f5 $11) 12. g4 {[%emt 0:16:00]} Nd7 {[%emt 0:04:58]} 13. c3 {[%emt 0:14:44]} Bxf4 {[%emt 0:04:40]} 14. Qxf4 {[%emt 0:00:21]} f5 {[%emt 0:00:25]} 15. g5 {[%emt 0:01:29]} Rfe8 {[%emt 0:03:16]} 16. Nf3 {[%emt 0:09:58]} Rad8 {[%emt 0:00:58]} 17. h5 {[%emt 0:04:49]} Nf8 {[%emt 0:01:12]} (17... a5 $16 18. hxg6 fxg6) 18. Qh4 {[%emt 0:09:23]} Qc7 {[%emt 0:05:57]} 19. Ne5 {[%emt 0:00:34]} Re7 {[%emt 0:03:14]} 20. f4 {[%emt 0:03:21]} b5 {[%emt 0:00:39]} 21. a4 {[%emt 0:04:08]} (21. O-O-O $18 {and White stays clearly on top.}) 21... a6 {[%emt 0:00:29]} (21... Rb8 $142) 22. Kf2 {[%emt 0:01:07]} Bd7 {[%emt 0:00:16]} (22... c5 $16 {was called for.}) 23. Bc2 {[%emt 0:00:34]} (23. Qh3 $18) 23... Be8 {[%emt 0:01:06][%csl Oe8] Black has a bad bishop} (23... c5 $142) 24. axb5 $16 {[%emt 0:00:33] White has strong rooks and is better} axb5 {[%emt 0:00:21]} 25. Ra6 {[%emt 0:00:32]} Rb8 {[%emt 0:03:05]} (25... c5 $16) 26. b4 {[%emt 0:00:14]} Qc8 {[%emt 0:06:33]} 27. Rha1 {[%emt 0:00:13]} Ne6 {[%emt 0:02:40] [#]} 28. Bxf5 {[%emt 0:01:05]} gxf5 {[%emt 0:00:52] [#]} 29. g6 $1 {[%emt 0:00:02][%mdl 512]} Rc7 {[%emt 0:02:40][%cal Rf7g6]} 30. gxh7+ {[%emt 0:00:33][%csl Oh7] White has a strong passed pawn} Kxh7 {[%emt 0:02:09]} 31. Qf6 {[%emt 0:00:08] White attacks Some like it hot} Qd8 {[%emt 0:00:16]} 32. Qxf5+ {[%emt 0:00:06]} Kh8 {[%emt 0:01:59][%cal Bh7h8,Bh8g8,Bg8f8][%mdl 32]} 33. Qg4 $40 {[%emt 0:01:39][%mdl 128] Against Qh4+. White is up to no good. White is much more active.} (33. h6 $16) 33... Ng7 $2 {[%emt 0:01:34][%mdl 8192]} (33... f5 $11 34. Qh3 Qf6) 34. h6 $18 {[%emt 0:00:26][%csl Gh6][%cal Rg4g7]} f5 {[%emt 0:00:57]} 35. hxg7+ {[%emt 0:00:12] White mates.} Rxg7 {[%emt 0:00:03] Black is weak on the dark squares} 36. Rh1+ {[%emt 0:00:20]} Kg8 {[%emt 0:00:23]} 37. Qh3 {[%emt 0:00:15][%csl Gh1][%cal Rh3h8]} Kf8 {[%emt 0:01:24] [#]} 38. Ra7 $1 {[%emt 0:01:09][%mdl 512] Weighted Error Value: White=0.25 (precise) /Black=0.56  Loses game:     	---       	Black=1      Mistake:       	White=4     	Black=6      Inaccurate:     	---       	Black=4      OK:         	White=7     	Black=3      Best:        	White=1     	Black=2      Brilliant:      	White=1     	---} 1-0

[Event "Silves Open 2025"]
[Site "Fissul"]
[Date "2025.03.03"]
[Round "3.9"]
[White "Malassagne, Raphael"]
[Black "Pinho, Tiago Brandao De"]
[Result "1-0"]
[Annotator "TA"]
[ECO "A45"]
[WhiteElo "2267"]
[BlackElo "1919"]
[PlyCount "97"]
[EventDate "2025.03.03"]
[EventType "swiss"]
[EventCountry "POR"]
[SourceTitle "playchess.com"]
[Source "ChessBase"]
[SourceQuality "1"]
[TimeControl "5400+30"]

{[%evp 9,97,0,0,-4,33,35,46,33,31,12,20,18,32,37,43,47,42,41,44,45,41,34,37,25,32,38,40,18,116,68,87,87,88,89,143,150,179,126,137,109,111,115,108,105,175,175,165,115,118,114,124,130,134,148,164,178,267,262,250,267,255,228,285,274,541,539,511,381,366,366,656,652,780,779,29958,29960,29960,29961,29969,29970,29971,29969,29969,29969,12841,11389,29966,6123,29978,29979]} 1. d4 {[%emt 0:00:03]} Nf6 {[%emt 0:05:54]} 2. Bf4 {[%emt 0:00:11]} g6 {[%emt 0:00:25]} 3. Nc3 {[%emt 0:00:12]} d5 {[%emt 0:00:15]} 4. e3 {[%emt 0:00:07]} Bg7 {[%emt 0:00:31]} 5. h4 {[%emt 0:00:07]} h5 {[%emt 0:00:54]} 6. Nf3 {[%emt 0:00:06] A45: Trompowsky Attack.} (6. Nb5 $5 Na6 $8 7. Nc3 $11) 6... Bg4 {[%emt 0:00:57]} 7. Qd2 {[%emt 0:00:16]} c6 {[%emt 0:04:01]} 8. Ne5 {[%emt 0:00:19] White is slightly better.} Bf5 {[%emt 0:01:33]} 9. f3 {[%emt 0:00:16]} Nbd7 {[%emt 0:01:15]} 10. O-O-O {[%emt 0:00:36]} Nxe5 {[%emt 0:07:14]} 11. Bxe5 {[%emt 0:02:29]} Qa5 {[%emt 0:05:39]} 12. Kb1 {[%emt 0:00:35]} O-O-O {[%emt 0:01:54]} 13. Qf2 $146 {[%emt 0:18:56]} (13. Be2 Rdg8 14. Bxf6 Bxf6 15. e4 dxe4 16. fxe4 Be6 17. Qe3 Rd8 18. a3 Rd7 19. Bf3 {1-0 Fritz,A (1977)-Koloczek,M (1852) Krakow op-B 29th 2018 (9)}) 13... Ne8 {[%emt 0:05:00]} 14. Bxg7 {[%emt 0:12:25]} Nxg7 {[%emt 0:00:24]} 15. e4 {[%emt 0:00:34]} Be6 {[%emt 0:14:07]} 16. Qe3 {[%emt 0:06:13]} Rd7 {[%emt 0:05:12]} 17. Be2 {[%emt 0:06:16]} Rhd8 {[%emt 0:10:53]} 18. a3 {[%emt 0:10:31]} b5 {[%emt 0:06:19]} (18... dxe4 $11 {remains equal.} 19. fxe4 Ne8) 19. exd5 {[%emt 0:04:56]} (19. g4 $16) 19... Bxd5 {[%emt 0:01:06]} 20. Nxd5 {[%emt 0:01:08]} cxd5 {[%emt 0:00:24]} 21. g4 {[%emt 0:03:16]} Rb7 {[%emt 0:06:37]} (21... a6 $142) 22. Rd3 $16 {[%emt 0:03:27]} a6 {[%emt 0:06:53]} 23. Rhd1 {[%emt 0:01:26]} ({Better is} 23. Qh6 $18 Ne6 24. gxh5) 23... Qb6 {[%emt 0:01:46]} 24. Rc3+ {[%emt 0:01:57]} Rc7 {[%emt 0:05:43]} 25. Rxc7+ {[%emt 0:09:33]} Qxc7 {[%emt 0:00:07]} 26. a4 {[%emt 0:00:07]} bxa4 {[%emt 0:05:03]} (26... Ne8 $16 27. gxh5 (27. axb5 axb5 28. gxh5 gxh5 $18) 27... gxh5 28. axb5 axb5) 27. Bxa6+ $18 {[%emt 0:00:51]} Kb8 {[%emt 0:00:02]} 28. Qa3 {[%emt 0:02:12]} (28. Bb5 $18) 28... Rd6 $16 {[%emt 0:02:09]} 29. Bb5 $36 {[%emt 0:06:17][%cal Ba6b5,Bb5a4,Ba4e8][%mdl 2080] White has strong initiative.} (29. Qxa4 $6 Qa7 30. Qb5+ Kc7 31. Qa5+ Kb8 32. Qb5+ Kc7 33. Qa5+ Kb8 34. Qb5+ $11) 29... Qa5 {[%emt 0:01:39]} 30. Bxa4 {[%emt 0:02:18] White is more active.} ({Of course not} 30. Qxa4 $6 Qxa4 31. Bxa4 Rf6 $11) 30... Ra6 {[%emt 0:00:22] [#]} 31. b3 {[%emt 0:00:05]} Ra7 {[%emt 0:00:55]} 32. Qc5 {[%emt 0:01:05] Inhibits Rc7.} Ne6 {[%emt 0:00:35]} (32... hxg4 33. fxg4 Qd8) 33. Qxa5 $18 {[%emt 0:01:09]} Rxa5 {[%emt 0:00:01][%mdl 4096] Endgame KRB-KRN. White is a pawn up.} 34. Be8 {[%emt 0:00:10]} Nd8 {[%emt 0:00:55]} 35. Kb2 {[%emt 0:00:17]} Ra6 {[%emt 0:00:16]} 36. Re1 {[%emt 0:00:26]} Re6 $2 {[%emt 0:00:55]} (36... e6 {is a better defense.} 37. gxh5 gxh5) 37. Rxe6 {[%emt 0:01:04]} Nxe6 {[%emt 0:00:24]} 38. gxh5 {[%emt 0:02:23]} gxh5 {[%emt 0:00:25]} 39. Bxf7 {[%emt 0:00:06]} Nxd4 {[%emt 0:00:04]} (39... Nf4 40. c4 dxc4) 40. Bxh5 {[%emt 0:00:07] KB-KN. White is two pawns up.} Nf5 {[%emt 0:00:24][%cal Bd4f5,Bf5h4,Bh4g6,Bg6e5,Be5d7,Bd7b8,Bb8a6][%mdl 32]} 41. Bf7 {[%emt 0:00:35]} Nxh4 {[%emt 0:00:24]} 42. Bxd5 {[%emt 0:00:05]} Ng6 {[%emt 0:00:31]} 43. Be4 {[%emt 0:00:06]} Ne5 {[%emt 0:00:31]} 44. c4 {[%emt 0:00:06][%cal Bc2c4,Bc4c5][%mdl 32]} Kc7 {[%emt 0:00:03]} 45. Kc3 {[%emt 0:00:05]} Kb6 {[%emt 0:00:17]} 46. b4 {[%emt 0:00:05]} Nd7 {[%emt 0:00:11]} 47. Kd4 {[%emt 0:00:37] [#] Bd3 would kill now.} Nb8 {[%emt 0:00:28]} 48. Bd5 {[%emt 0:01:10]} (48. c5+ $142 Kc7 49. b5 Nd7 50. b6+ Nxb6 51. cxb6+ Kxb6 52. Kd5 Kb5 53. f4) 48... Na6 {[%emt 0:00:15]} 49. c5+ {[%emt 0:00:09] Weighted Error Value: White=0.11 (very precise) /Black=0.47  Mistake:       	White=3     	Black=6      Inaccurate:     	---       	Black=1      OK:         	White=16    	Black=8      Best:        	White=2     	Black=2} 1-0